[Event "WEM-KT 2018"]
[Site "Illertissen"]
[Date "2018.08.26"]
[Round "2"]
[White "Gustain, Marc"]
[Black "Anistratov, Dmitriy"]
[Result "1-0"]
[ECO "B07"]
[WhiteElo "2102"]
[BlackElo "2279"]
[Annotator "NA"]
[PlyCount "105"]
[EventDate "2018.08.25"]
[EventType "tourn"]
[EventCountry "GER"]
[SourceTitle "playchess.com"]
[Source "ChessBase"]
[SourceQuality "1"]
[TimeControl "40/6000+30:3000+30"]

1. e4 {[%emt 0:09:31]} c6 {[%emt 0:20:15]} 2. d4 {[%emt 0:01:01]} d6 {[%emt 0:00:17]} 3. Nc3 {[%emt 0:01:35]} Nf6 {[%emt 0:03:47]} 4. f4 {[%emt 0:02:22]} Qa5 {[%emt 0:03:03]} 5. Bd3 {[%emt 0:00:32]} Bg4 {[%emt 0:01:34]} 6. Qd2 {[%emt 0:05:33] B07: Pirc Defence: Miscellaneous Systems} g6 {[%emt 0:12:32]} (6... Bc8 7. Nf3 Nbd7 8. O-O e5 9. Kh1 Be7 10. Qe1 Nh5 11. fxe5 dxe5 12. Bd2 Qc7 13. d5 Nb6 {1-0 (52) Piorun,K (2501)-Schmidt,R (2387) Bucharest 2010}) 7. h3 {[%emt 0:10:42]} Bd7 {[%emt 0:03:56]} 8. Nf3 {[%emt 0:01:36]} Bg7 {[%emt 0:12:40]} 9. Qf2 $146 {[%emt 0:07:29]} ({Predecessor:} 9. O-O h5 10. Qf2 Ng4 11. hxg4 hxg4 12. Ng5 f6 13. e5 fxg5 14. fxg5 {1-0 (42) Berthelot,Y (2296)-Kozlowski,T (2012) Etang Sale 2001}) 9... Na6 {[%emt 0:08:01]} 10. a3 {[%emt 0:06:06]} c5 {[%emt 0:08:48]} 11. O-O {[%emt 0:09:37]} cxd4 {[%emt 0:01:05]} 12. Nxd4 {[%emt 0:01:26]} O-O {[%emt 0:00:51]} 13. Nb3 {[%emt 0:03:19]} Qc7 {[%emt 0:09:00]} 14. Be3 {[%emt 0:02:10]} Qb8 {[%emt 0:01:12]} 15. Rae1 {[%emt 0:05:51]} Nc7 {[%emt 0:00:42]} 16. Qf3 {[%emt 0:08:51]} Qc8 {[%emt 0:09:22]} 17. Nd4 {[%emt 0:01:14]} Ne6 {[%emt 0:02:20]} 18. Nxe6 {[%emt 0:01:58]} Bxe6 {[%emt 0:00:20]} 19. Bd4 {[%emt 0:02:05]} Bc4 {[%emt 0:02:53]} 20. Qe2 {[%emt 0:02:21]} Bxd3 {[%emt 0:00:47]} 21. cxd3 {[%emt 0:00:25]} e5 {[%emt 0:02:05]} 22. fxe5 {[%emt 0:01:46]} Nd7 {[%emt 0:01:34]} 23. Nd5 {[%emt 0:00:54]} Qd8 {[%emt 0:00:29]} 24. Nf6+ {[%emt 0:04:54]} Kh8 {[%emt 0:00:02]} 25. Nxd7 {[%emt 0:00:32]} Qxd7 {[%emt 0:00:10]} 26. Qe3 {[%emt 0:02:42]} Bxe5 {[%emt 0:02:29]} 27. Rc1 {[%emt 0:02:02]} b6 {[%emt 0:00:55]} 28. Bc3 {[%emt 0:00:39]} Rae8 {[%emt 0:00:23]} 29. Rc2 {[%emt 0:01:51]} Kg8 {[%emt 0:00:17]} 30. Rfc1 {[%emt 0:00:43]} Bxc3 {[%emt 0:01:23]} 31. Rxc3 {[%emt 0:00:19]} Qb5 {[%emt 0:00:38]} 32. Qd4 {[%emt 0:03:43]} Qxb2 {[%emt 0:00:42]} 33. Qxd6 {[%emt 0:00:04]} Rd8 {[%emt 0:00:24]} 34. Qf4 {[%emt 0:00:47]} Qb5 {[%emt 0:00:33]} 35. Qe3 {[%emt 0:00:49]} Rd7 {[%emt 0:00:25]} 36. d4 {[%emt 0:00:46]} Kg7 {[%emt 0:00:19]} 37. d5 {[%emt 0:04:35]} Qa4 {[%emt 0:00:49]} 38. Rc4 {[%emt 0:01:09]} Qa5 {[%emt 0:00:18]} 39. Qd4+ {[%emt 0:01:31]} Kg8 {[%emt 0:00:40]} 40. a4 {[%emt 0:01:28]} Qa6 {[%emt 0:01:18]} 41. e5 {[%emt 0:28:15]} b5 {[%emt 0:27:36]} 42. axb5 {[%emt 0:02:19]} Qxb5 {[%emt 0:00:11]} 43. d6 {[%emt 0:00:52]} a5 {[%emt 0:07:45]} 44. Rc7 {[%emt 0:02:52]} (44. Rc8 $142 Rdd8 45. R8c7) 44... a4 {[%emt 0:15:25]} 45. Rxd7 {[%emt 0:02:54]} Qxd7 {[%emt 0:00:01]} 46. Rc7 {[%emt 0:01:26]} Qf5 {[%emt 0:00:47]} 47. d7 $18 {[%emt 0:03:40]} Rd8 {[%emt 0:00:58]} 48. Qd6 {[%emt 0:02:03]} Kg7 {[%emt 0:01:21]} 49. Qe7 {[%emt 0:00:45]} Qb1+ {[%emt 0:00:36]} 50. Kh2 {[%emt 0:00:09]} Qb8 {[%emt 0:00:21]} 51. Qf6+ {[%emt 0:00:55]} Kf8 {[%emt 0:00:33]} 52. Rc8 {[%emt 0:02:10]} Rxc8 {[%emt 0:00:26]} 53. dxc8=Q+ {[%emt 0:00:26]} 1-0

[Event "WEM-KT 2018"]
[Site "Illertissen"]
[Date "2018.08.26"]
[Round "2"]
[White "Jakob, Georg"]
[Black "Laengl, Juergen"]
[Result "1/2-1/2"]
[ECO "C19"]
[WhiteElo "2084"]
[BlackElo "2223"]
[Annotator "NA"]
[PlyCount "30"]
[EventDate "2018.08.25"]
[EventType "tourn"]
[EventCountry "GER"]
[SourceTitle "playchess.com"]
[Source "ChessBase"]
[SourceQuality "1"]
[TimeControl "40/6000+30:3000+30"]

1. e4 {[%emt 0:09:32]} e6 {[%emt 0:09:37]} 2. d4 {[%emt 0:00:05]} d5 {[%emt 0:00:10]} 3. Nc3 {[%emt 0:00:05]} Bb4 {[%emt 0:00:13]} 4. e5 {[%emt 0:00:05]} Ne7 {[%emt 0:00:36]} 5. a3 {[%emt 0:01:03]} Bxc3+ {[%emt 0:00:07]} 6. bxc3 {[%emt 0:00:06]} c5 {[%emt 0:00:10]} 7. Nf3 {[%emt 0:00:05]} Bd7 {[%emt 0:01:51]} 8. Rb1 {[%emt 0:00:20]} Qc7 {[%emt 0:05:06]} 9. Bf4 {[%emt 0:00:34] LiveBook: 7 Games} Ng6 {[%emt 0:01:06]} 10. Bg3 {[%emt 0:12:50]} b6 {[%emt 0:02:25]} 11. h4 {[%emt 0:11:50]} cxd4 {[%emt 0:05:23]} 12. cxd4 {[%emt 0:00:52]} h5 {[%emt 0:08:27]} 13. Bd3 $11 {[%emt 0:06:46]} Qc3+ {[%emt 0:04:19]} 14. Kf1 {[%emt 0:03:37]} Ne7 {[%emt 0:10:18]} 15. Rb3 {[%emt 0:07:31]} Qc8 {[%emt 0:07:14]} 1/2-1/2

[Event "WEM-KT 2018"]
[Site "Illertissen"]
[Date "2018.08.26"]
[Round "2"]
[White "Wolf, Rainer"]
[Black "Engelhart, Achim"]
[Result "1/2-1/2"]
[ECO "A04"]
[WhiteElo "2044"]
[BlackElo "2126"]
[Annotator "NA"]
[PlyCount "92"]
[EventDate "2018.08.25"]
[EventType "tourn"]
[EventCountry "GER"]
[SourceTitle "playchess.com"]
[Source "ChessBase"]
[SourceQuality "1"]
[TimeControl "40/6000+30:3000+30"]

1. Nf3 {[%emt 0:09:36]} c5 {[%emt 0:09:34]} 2. e4 {[%emt 0:01:46]} Nc6 {[%emt 0:00:09]} 3. g3 {[%emt 0:00:58]} g6 {[%emt 0:01:36]} 4. Bg2 {[%emt 0:01:27]} Bg7 {[%emt 0:00:12]} 5. O-O {[%emt 0:00:50]} e5 {[%emt 0:01:45] A04: Unusual lines after 1 Nf3 and King's Indian Attack} (5... d6 6. d3 e5 7. Nc3 Nge7 8. Nd2 O-O 9. Nc4 Be6 10. Nd5 Kh8 11. c3 Qd7 12. a4 f5 13. a5 Bg8 14. Nxe7 Nxe7 15. Qa4 Rad8 16. Bg5 Bf6 17. Bxf6+ Rxf6 18. exf5 gxf5 {1-0 (56) Grischuk,A (2767)-Gelfand,B (2695) Moscow 2018}) 6. b3 {[%emt 0:06:32]} Nge7 {[%emt 0:03:05]} 7. Bb2 {[%emt 0:02:13]} O-O {[%emt 0:00:22]} 8. c3 $146 {[%emt 0:08:56]} ({Predecessor:} 8. d3 f5 9. Nbd2 d6 10. a4 h6 11. Nc4 Be6 12. Qe2 f4 13. Nfd2 Qd7 14. f3 g5 15. g4 Ng6 16. Na3 Rab8 17. Ndc4 Rfc8 {0-1 (103) Enchev,I (2120)-Bojchev,M (2214) Kazanlak 2005}) 8... d5 {[%emt 0:11:06]} 9. exd5 {[%emt 0:24:41]} Nxd5 {[%emt 0:05:02]} 10. d4 {[%emt 0:02:35]} cxd4 {[%emt 0:26:20]} 11. cxd4 {[%emt 0:03:09]} e4 {[%emt 0:00:19]} 12. Ne5 {[%emt 0:04:21]} f5 {[%emt 0:00:14]} 13. Qd2 {[%emt 0:06:34]} Be6 {[%emt 0:13:15]} 14. Nxc6 {[%emt 0:03:16]} bxc6 {[%emt 0:00:01]} 15. Rc1 {[%emt 0:06:02]} Qb6 {[%emt 0:01:05]} 16. Na3 {[%emt 0:06:44]} Nb4 {[%emt 0:05:09]} 17. Bf1 {[%emt 0:06:16]} a5 {[%emt 0:04:19]} 18. Nc4 {[%emt 0:00:19]} Qb7 {[%emt 0:00:47]} 19. Bc3 {[%emt 0:03:31]} Rfd8 {[%emt 0:03:56]} 20. Nxa5 {[%emt 0:00:47]} Rxa5 {[%emt 0:01:01]} 21. a3 {[%emt 0:00:52]} Raa8 {[%emt 0:04:38]} 22. axb4 $11 {[%emt 0:01:51]} Bxb3 {[%emt 0:00:59]} 23. Ra5 {[%emt 0:03:32]} Bd5 {[%emt 0:03:46]} 24. b5 {[%emt 0:00:33]} cxb5 {[%emt 0:02:14]} 25. Rxb5 {[%emt 0:00:09]} Qf7 {[%emt 0:01:48]} 26. Ba5 {[%emt 0:00:41]} Rd7 {[%emt 0:02:00]} 27. Rxd5 {[%emt 0:00:33]} Rxd5 {[%emt 0:00:13]} 28. Bc4 {[%emt 0:00:07]} Raxa5 {[%emt 0:00:39]} 29. Rb1 {[%emt 0:01:58]} Bf8 {[%emt 0:02:12]} 30. Rb8 {[%emt 0:00:59]} Kg7 {[%emt 0:00:33]} 31. Qb2 {[%emt 0:00:34]} Be7 {[%emt 0:03:24]} 32. Qb3 {[%emt 0:00:10]} Qe6 {[%emt 0:00:49]} 33. Rb6 {[%emt 0:01:25]} Qd7 {[%emt 0:00:44]} 34. Rb7 {[%emt 0:00:10]} Qe6 {[%emt 0:01:12]} 35. Bxd5 {[%emt 0:01:04]} Rxd5 {[%emt 0:01:11]} 36. Rxe7+ {[%emt 0:00:07]} Qxe7 {[%emt 0:00:01]} 37. Qxd5 {[%emt 0:00:08]} e3 {[%emt 0:01:51]} 38. fxe3 {[%emt 0:00:48]} Qxe3+ {[%emt 0:00:02]} 39. Kf1 {[%emt 0:00:14]} Qd3+ {[%emt 0:00:21]} 40. Ke1 {[%emt 0:01:18]} Qe3+ {[%emt 0:00:48]} 41. Kf1 {[%emt 0:50:09]} Qd3+ {[%emt 0:50:47]} 42. Ke1 {[%emt 0:00:08]} Qb1+ {[%emt 0:00:37]} 43. Kd2 {[%emt 0:00:00]} Qb2+ {[%emt 0:00:00]} 44. Kd3 {[%emt 0:00:00]} Qxh2 {[%emt 0:00:00]} 45. Qe5+ {[%emt 0:00:00]} Kf7 {[%emt 0:00:00]} 46. d5 {[%emt 0:00:00]} Qh1 {[%emt 0:00:00] Ke4 [%emt 00:21:47]} 1/2-1/2

[Event "WEM-KT 2018"]
[Site "Illertissen"]
[Date "2018.08.26"]
[Round "2"]
[White "Bossinger, Patrick"]
[Black "Jooss, Achim"]
[Result "1-0"]
[ECO "C10"]
[WhiteElo "2039"]
[BlackElo "1749"]
[Annotator "NA"]
[PlyCount "33"]
[EventDate "2018.08.25"]
[EventType "tourn"]
[EventCountry "GER"]
[SourceTitle "playchess.com"]
[Source "ChessBase"]
[SourceQuality "1"]
[TimeControl "40/6000+30:3000+30"]

1. e4 {[%emt 0:16:52]} e6 {[%emt 0:09:37]} 2. d4 {[%emt 0:01:01]} d5 {[%emt 0:00:05]} 3. Nd2 {[%emt 0:00:43]} dxe4 {[%emt 0:00:46]} 4. Nxe4 {[%emt 0:00:00]} Nc6 {[%emt 0:00:11]} 5. Nf3 {[%emt 0:00:04]} Be7 {[%emt 0:03:03]} 6. Bd3 {[%emt 0:01:54]} f5 {[%emt 0:00:41]} 7. Ng3 {[%emt 0:01:01]} Nf6 {[%emt 0:00:14]} 8. O-O {[%emt 0:00:37]} O-O {[%emt 0:05:25]} 9. c3 {[%emt 0:00:36]} Bd6 {[%emt 0:04:58]} 10. Re1 {[%emt 0:02:50]} Nd5 {[%emt 0:03:35]} 11. Ng5 {[%emt 0:11:14]} e5 {[%emt 0:09:03]} 12. Bc4 {[%emt 0:10:20]} Be7 {[%emt 0:03:40]} 13. dxe5 {[%emt 0:04:38]} Bxg5 {[%emt 0:00:17]} 14. Qxd5+ {[%emt 0:00:20]} Kh8 {[%emt 0:01:50]} 15. f4 {[%emt 0:04:26]} Bh4 {[%emt 0:02:23]} 16. Be3 {[%emt 0:02:43]} Qe7 {[%emt 0:01:43]} 17. Bc5 {[%emt 0:03:51]} 1-0

[Event "WEM-KT 2018"]
[Site "Illertissen"]
[Date "2018.08.26"]
[Round "2"]
[White "Hermann, Tobias"]
[Black "Schelberg, Martin"]
[Result "1-0"]
[ECO "E94"]
[WhiteElo "2002"]
[BlackElo "1727"]
[Annotator "NA"]
[PlyCount "101"]
[EventDate "2018.08.25"]
[EventType "tourn"]
[EventCountry "GER"]
[SourceTitle "playchess.com"]
[Source "ChessBase"]
[SourceQuality "1"]
[TimeControl "40/6000+30:3000+30"]

1. e4 {[%emt 0:09:34]} g6 {[%emt 0:09:49]} 2. d4 {[%emt 0:00:08]} d6 {[%emt 0:00:29]} 3. c4 {[%emt 0:00:22]} Bg7 {[%emt 0:00:16]} 4. Nc3 {[%emt 0:00:13]} Nf6 {[%emt 0:00:43]} 5. Nf3 {[%emt 0:01:48]} O-O {[%emt 0:01:43]} 6. Be2 {[%emt 0:00:44]} Nbd7 {[%emt 0:00:23]} 7. O-O {[%emt 0:00:19]} e5 {[%emt 0:01:27]} 8. dxe5 $11 {[%emt 0:02:25]} dxe5 {[%emt 0:02:21]} 9. Qc2 {[%emt 0:01:58]} c6 {[%emt 0:04:16]} 10. h3 {[%emt 0:02:08]} Qc7 {[%emt 0:05:01]} 11. Be3 {[%emt 0:00:52]} Nh5 {[%emt 0:08:52]} 12. Rfd1 {[%emt 0:03:29]} Nf4 {[%emt 0:04:57]} 13. Bf1 {[%emt 0:00:26]} Ne6 {[%emt 0:03:14]} 14. Nd2 {[%emt 0:08:50]} Nd4 {[%emt 0:08:53]} 15. Qb1 {[%emt 0:05:13]} Nc5 {[%emt 0:14:47]} 16. b4 {[%emt 0:03:55]} Nce6 {[%emt 0:02:25]} 17. Nb3 {[%emt 0:00:12]} Rd8 {[%emt 0:02:12]} 18. Qb2 {[%emt 0:04:24]} Qe7 {[%emt 0:04:09]} 19. c5 {[%emt 0:01:25]} Qh4 {[%emt 0:08:00]} 20. f3 {[%emt 0:29:39]} Nf4 {[%emt 0:14:15]} 21. Bf2 {[%emt 0:05:40]} Qg5 {[%emt 0:03:21]} 22. Kh1 {[%emt 0:01:57]} Qh5 {[%emt 0:02:07]} 23. Ne2 {[%emt 0:19:25]} Nxh3 {[%emt 0:01:42]} 24. gxh3 {[%emt 0:02:46]} Bxh3 {[%emt 0:01:45]} 25. Ng3 {[%emt 0:00:36]} Qxf3+ {[%emt 0:00:35]} 26. Kg1 {[%emt 0:01:40]} Qg4 {[%emt 0:02:21]} 27. Bxh3 {[%emt 0:01:37]} Qxh3 {[%emt 0:00:10]} 28. Nxd4 {[%emt 0:00:55]} exd4 {[%emt 0:00:10]} 29. Rd3 {[%emt 0:00:03]} Be5 {[%emt 0:00:59]} 30. Qe2 {[%emt 0:00:58]} h5 {[%emt 0:00:26]} 31. Nf1 {[%emt 0:00:31]} Qe6 {[%emt 0:00:40]} 32. Rad1 {[%emt 0:00:19]} Qf6 {[%emt 0:00:57]} 33. Qf3 {[%emt 0:00:20]} Qg5+ {[%emt 0:00:19]} 34. Qg2 {[%emt 0:00:16]} Qf6 {[%emt 0:00:50]} 35. Bg3 {[%emt 0:00:25]} Qe6 {[%emt 0:01:15]} 36. Qh2 {[%emt 0:00:49]} Qg4 {[%emt 0:01:07]} 37. Qg2 {[%emt 0:00:01]} Qe6 {[%emt 0:00:36]} 38. Qh2 {[%emt 0:00:10]} Qg4 {[%emt 0:00:12]} 39. Qh4 {[%emt 0:00:02]} Qe6 {[%emt 0:00:46]} 40. Qg5 {[%emt 0:00:41]} Bf6 {[%emt 0:00:55]} 41. Qd2 {[%emt 0:52:29]} Qc4 {[%emt 0:20:35]} 42. e5 {[%emt 0:00:00]} Bg7 {[%emt 0:01:15]} 43. Ne3 {[%emt 0:00:00]} Qe6 {[%emt 0:01:17]} 44. Rxd4 {[%emt 0:00:00]} Rxd4 {[%emt 0:00:42]} 45. Qxd4 {[%emt 0:00:00]} Qxa2 {[%emt 0:00:59]} 46. Qc4 {[%emt 0:00:00]} Qa3 {[%emt 0:05:05]} 47. Rd3 {[%emt 0:00:00]} Qa1+ {[%emt 0:00:29]} 48. Rd1 {[%emt 0:00:00]} Qa3 {[%emt 0:00:17]} 49. Nf1 {[%emt 0:00:00]} Qf3 {[%emt 0:13:09]} 50. Rd3 {[%emt 0:00:00]} Qe2 {[%emt 0:00:28]} 51. Rd8+ {[%emt 0:00:00]} 1-0

[Event "WEM-KT 2018"]
[Site "Illertissen"]
[Date "2018.08.26"]
[Round "2"]
[White "Seidler, Ottmar"]
[Black "Klaiss, Thomas"]
[Result "0-1"]
[ECO "E52"]
[WhiteElo "1706"]
[BlackElo "2021"]
[Annotator "NA"]
[PlyCount "40"]
[EventDate "2018.08.25"]
[EventType "tourn"]
[EventCountry "GER"]
[SourceTitle "playchess.com"]
[Source "ChessBase"]
[SourceQuality "1"]
[TimeControl "40/6000+30:3000+30"]

1. d4 {[%emt 0:09:56]} Nf6 {[%emt 0:09:49]} 2. c4 {[%emt 0:00:13]} e6 {[%emt 0:00:08]} 3. Nf3 {[%emt 0:01:03]} b6 {[%emt 0:00:59]} 4. Nc3 {[%emt 0:02:22]} Bb7 {[%emt 0:00:14]} 5. e3 {[%emt 0:00:25]} Bb4 {[%emt 0:01:44]} 6. Bd2 {[%emt 0:02:29]} O-O {[%emt 0:01:24]} 7. Bd3 {[%emt 0:04:13]} d5 {[%emt 0:03:55]} 8. Qc2 {[%emt 0:02:09]} c5 {[%emt 0:02:03]} 9. dxc5 {[%emt 0:16:39]} dxc4 {[%emt 0:08:36]} 10. Bxc4 {[%emt 0:01:27]} Bxc5 {[%emt 0:00:47]} 11. Rd1 {[%emt 0:08:15]} Nbd7 {[%emt 0:05:08]} 12. a3 {[%emt 0:06:13]} Rc8 {[%emt 0:02:03]} 13. Bd3 {[%emt 0:05:40]} Bd6 {[%emt 0:18:40]} 14. b4 {[%emt 0:05:41]} Ne5 {[%emt 0:06:44]} 15. Nxe5 {[%emt 0:03:07]} Bxe5 {[%emt 0:00:08]} 16. f4 {[%emt 0:08:48]} Bxc3 {[%emt 0:05:42]} 17. Bxc3 {[%emt 0:01:33]} Nd5 {[%emt 0:01:50]} 18. Bxh7+ {[%emt 0:07:45]} Kh8 {[%emt 0:00:39]} 19. O-O {[%emt 0:07:14]} Rxc3 {[%emt 0:14:08]} 20. Rxd5 {[%emt 0:11:58]} Qxd5 {[%emt 0:00:16]} 0-1

[Event "WEM-KT 2018"]
[Site "Illertissen"]
[Date "2018.08.27"]
[Round "3"]
[White "Engelhart, Achim"]
[Black "Bossinger, Patrick"]
[Result "1/2-1/2"]
[ECO "B18"]
[WhiteElo "2126"]
[BlackElo "2039"]
[Annotator "NA"]
[PlyCount "184"]
[EventDate "2018.08.25"]
[EventType "tourn"]
[EventCountry "GER"]
[SourceTitle "playchess.com"]
[Source "ChessBase"]
[SourceQuality "1"]
[TimeControl "40/6000+30:3000+30"]

1. e4 {[%emt 0:09:31]} c6 {[%emt 0:09:48]} 2. d4 {[%emt 0:00:09]} d5 {[%emt 0:00:07]} 3. Nd2 {[%emt 0:00:04]} dxe4 {[%emt 0:00:08]} 4. Nxe4 {[%emt 0:00:03]} Bf5 {[%emt 0:00:10]} 5. Ng3 {[%emt 0:00:04]} Bg6 $1 {[%emt 0:00:09]} 6. N1e2 {[%emt 0:00:56]} e6 {[%emt 0:03:17]} 7. Nf4 {[%emt 0:00:46]} Qc7 {[%emt 0:00:58] LiveBook: 108 Games} 8. c3 {[%emt 0:11:22] B18: Classical Caro-Kann: 4...Bf5 sidelines} (8. h4 Bd6 9. Nxg6 hxg6 10. Ne4 Bf4 11. Bxf4 Qxf4 {½-½ (11) Delchev,A (2558)-Jobava,B (2669) Gallipoli 2018}) 8... Bd6 {[%emt 0:04:54]} 9. Qf3 {[%emt 0:02:29]} Nd7 {[%emt 0:06:02]} 10. Nxg6 {[%emt 0:13:51]} hxg6 {[%emt 0:00:27]} 11. Ne4 {[%emt 0:00:09]} Ngf6 {[%emt 0:10:27]} 12. Nxd6+ {[%emt 0:00:56]} Qxd6 {[%emt 0:00:10]} 13. Bf4 {[%emt 0:03:31]} Qe7 {[%emt 0:00:55]} 14. O-O-O {[%emt 0:03:01]} Nd5 {[%emt 0:09:06]} 15. Bg3 $146 {[%emt 0:03:40]} ({Predecessor:} 15. Bd2 b5 16. Bd3 {1-0 (51) Wacker,P (2323)-Bekedam,T (2073) Groningen 2017}) 15... b5 {[%emt 0:08:40]} 16. Bd3 {[%emt 0:04:12]} N7b6 {[%emt 0:05:29]} 17. Kb1 {[%emt 0:07:50]} Na4 {[%emt 0:03:51]} 18. Rd2 {[%emt 0:06:37]} Kd7 {[%emt 0:08:19]} 19. Ka1 {[%emt 0:00:41]} a6 {[%emt 0:03:42]} 20. Rc1 {[%emt 0:02:59]} Rhc8 {[%emt 0:01:27]} 21. h3 {[%emt 0:05:02]} c5 {[%emt 0:05:54]} 22. dxc5 {[%emt 0:04:19]} Rxc5 {[%emt 0:03:17]} 23. Be4 {[%emt 0:03:06]} Nab6 {[%emt 0:00:43]} 24. Rcd1 {[%emt 0:00:53]} Ke8 {[%emt 0:03:08]} 25. Bf4 {[%emt 0:05:54]} Rd8 {[%emt 0:04:16]} 26. Be3 {[%emt 0:02:08]} Rcc8 {[%emt 0:00:09]} 27. Bxb6 {[%emt 0:06:25]} Nxb6 {[%emt 0:00:02]} 28. Bb7 {[%emt 0:00:57]} Nc4 {[%emt 0:04:41]} 29. Rxd8+ {[%emt 0:08:15]} Rxd8 {[%emt 0:00:11]} 30. Qc6+ {[%emt 0:00:10]} Kf8 {[%emt 0:00:47]} 31. Rxd8+ {[%emt 0:00:24]} Qxd8 {[%emt 0:00:02]} 32. Qc8 {[%emt 0:00:05]} Qxc8 {[%emt 0:03:31]} 33. Bxc8 {[%emt 0:00:01]} a5 {[%emt 0:00:33]} 34. Bd7 {[%emt 0:02:32]} Nd6 {[%emt 0:01:59]} 35. a4 {[%emt 0:00:23]} bxa4 {[%emt 0:01:32]} 36. Bxa4 {[%emt 0:00:26]} Ke7 {[%emt 0:02:02]} 37. Ka2 {[%emt 0:01:57]} f5 {[%emt 0:02:05]} 38. Bc6 {[%emt 0:01:10]} Kd8 {[%emt 0:01:28]} 39. Kb3 {[%emt 0:00:49]} Kc7 {[%emt 0:00:33]} 40. Bf3 {[%emt 0:00:19]} Kb6 {[%emt 0:03:57]} 41. h4 {[%emt 0:22:48]} f4 {[%emt 0:24:05]} 42. Kc2 {[%emt 0:04:45]} Kc5 {[%emt 0:04:59]} 43. Kd3 {[%emt 0:00:25]} e5 $1 {[%emt 0:01:17]} 44. b3 {[%emt 0:01:08]} Kb5 {[%emt 0:06:00]} 45. Be4 {[%emt 0:01:30]} Kc5 {[%emt 0:04:49]} 46. Bxg6 {[%emt 0:01:46]} Kd5 {[%emt 0:01:13]} 47. f3 {[%emt 0:01:40]} Kc5 {[%emt 0:01:13]} 48. Bh7 {[%emt 0:03:54]} Kb5 {[%emt 0:01:57]} 49. Be4 {[%emt 0:02:12]} Ne8 {[%emt 0:01:34]} 50. Kc2 {[%emt 0:00:33]} Nf6 {[%emt 0:01:01]} 51. Kb2 {[%emt 0:05:07]} Nd7 {[%emt 0:02:55]} 52. Ka3 {[%emt 0:00:31]} Nc5 $2 {[%emt 0:00:15]} (52... Nb6 $16 53. Kb2 Kc5) 53. b4 {[%emt 0:03:20]} axb4+ {[%emt 0:00:08]} 54. cxb4 {[%emt 0:00:01]} Nd7 {[%emt 0:01:30]} 55. Kb3 {[%emt 0:00:30]} Nb6 {[%emt 0:00:33]} 56. Bd3+ {[%emt 0:00:14]} Kc6 {[%emt 0:00:12]} 57. Bc4 {[%emt 0:00:40]} Kd6 {[%emt 0:00:23]} 58. Kc3 {[%emt 0:00:38]} Na4+ {[%emt 0:00:11]} 59. Kc2 {[%emt 0:00:59]} Nb6 {[%emt 0:00:10]} 60. Kd3 {[%emt 0:00:17]} Kc6 {[%emt 0:02:19]} 61. Ba6 {[%emt 0:02:39]} Nd5 {[%emt 0:01:38]} 62. b5+ {[%emt 0:00:22]} Kd6 {[%emt 0:00:19]} 63. Ke4 {[%emt 0:01:21]} g6 {[%emt 0:01:39]} 64. Kd3 {[%emt 0:02:22]} Nb4+ {[%emt 0:00:41]} 65. Ke2 {[%emt 0:00:40]} Nd5 {[%emt 0:01:28]} 66. Kf2 {[%emt 0:00:09]} Ke6 {[%emt 0:00:29]} 67. g4 {[%emt 0:01:37]} fxg3+ {[%emt 0:00:24]} 68. Kxg3 {[%emt 0:00:01]} Kf6 {[%emt 0:00:42]} 69. Bb7 {[%emt 0:01:02]} Nb6 {[%emt 0:00:25]} 70. Be4 {[%emt 0:00:47]} Kg7 {[%emt 0:00:12]} 71. Kg4 {[%emt 0:00:09]} Kf6 {[%emt 0:00:09]} 72. Bc6 {[%emt 0:00:46]} Nc4 {[%emt 0:00:14]} 73. Kg3 {[%emt 0:01:11]} Kf5 {[%emt 0:00:58]} 74. Be4+ {[%emt 0:01:07]} Kf6 {[%emt 0:00:01]} 75. Kh3 {[%emt 0:00:28]} Nb6 {[%emt 0:00:18]} 76. Kg4 {[%emt 0:00:32]} Nc4 {[%emt 0:00:06]} 77. h5 {[%emt 0:00:58]} gxh5+ {[%emt 0:00:29]} 78. Kxh5 {[%emt 0:00:01]} Ke6 {[%emt 0:01:00]} 79. Kg6 {[%emt 0:00:07]} Nb6 {[%emt 0:00:25]} (79... Kd6 $11) 80. Bc2 $11 {[%emt 0:00:40]} Na8 {[%emt 0:01:51]} 81. Bb3+ {[%emt 0:00:24]} Ke7 {[%emt 0:00:03]} 82. Kf5 {[%emt 0:00:22]} Kd6 {[%emt 0:00:05]} 83. Bc2 {[%emt 0:00:41]} Nb6 {[%emt 0:00:13]} 84. Be4 {[%emt 0:00:19]} Nc4 {[%emt 0:00:17]} 85. Kf6 {[%emt 0:00:26]} Nb6 {[%emt 0:01:19]} 86. Bc6 {[%emt 0:00:27]} Nc4 {[%emt 0:00:52]} 87. Kf7 {[%emt 0:00:09]} Kc7 {[%emt 0:00:35]} 88. Ke6 {[%emt 0:00:24]} Kb6 {[%emt 0:00:10]} 89. Kd5 {[%emt 0:00:18]} Nd2 {[%emt 0:00:15]} 90. Kxe5 {[%emt 0:01:35]} Nxf3+ {[%emt 0:00:07]} 91. Bxf3 {[%emt 0:00:03]} Kxb5 {[%emt 0:00:06]} 92. Ke4 {[%emt 0:00:24]} Kb6 {[%emt 0:00:08]} 1/2-1/2

[Event "WEM-KT 2018"]
[Site "Illertissen"]
[Date "2018.08.27"]
[Round "3"]
[White "Bildt, Maximilian"]
[Black "Gustain, Marc"]
[Result "1/2-1/2"]
[ECO "B01"]
[WhiteElo "2073"]
[BlackElo "2102"]
[Annotator "NA"]
[PlyCount "51"]
[EventDate "2018.08.25"]
[EventType "tourn"]
[EventCountry "GER"]
[SourceTitle "playchess.com"]
[Source "ChessBase"]
[SourceQuality "1"]
[TimeControl "40/6000+30:3000+30"]

1. e4 {[%emt 0:09:33]} d5 {[%emt 0:09:34]} 2. exd5 {[%emt 0:00:09]} Qxd5 {[%emt 0:00:06]} 3. Nc3 {[%emt 0:00:13]} Qd8 {[%emt 0:00:11]} 4. d4 {[%emt 0:00:42]} Nf6 {[%emt 0:00:11]} 5. Bc4 {[%emt 0:02:31]} a6 {[%emt 0:00:30] B01: Skandinavische Verteidigung} 6. a4 {[%emt 0:06:01]} (6. Bg5 h6 7. Bxf6 exf6 8. Nf3 Bb4 9. O-O Bxc3 10. bxc3 O-O 11. Re1 Nc6 12. Nh4 Na5 13. Bd3 {1-0 (21) Nakamura,H (2789)-Shaw,J (2454) Baku 2016}) 6... Nc6 {[%emt 0:02:16] LiveBook: 10 Games} 7. Nge2 {[%emt 0:07:03]} Bf5 {[%emt 0:05:44]} 8. O-O {[%emt 0:03:48]} Nb4 {[%emt 0:03:37]} 9. Bb3 {[%emt 0:03:20]} e6 {[%emt 0:01:56]} 10. Ng3 {[%emt 0:06:26]} Bg6 {[%emt 0:02:33]} 11. f4 $146 {[%emt 0:01:49]} ({Vorgänger:} 11. Nce2 c5 12. c3 Nd3 13. a5 {1-0 (55) Hevia Alejano,C (2534)-Bartholomew,J (2451) Brownsville 2016}) 11... Qd7 {[%emt 0:20:27]} 12. Na2 {[%emt 0:17:32]} Nc6 {[%emt 0:15:23]} 13. c3 {[%emt 0:05:32]} Bd6 {[%emt 0:02:24]} 14. Qf3 {[%emt 0:08:51]} O-O {[%emt 0:02:51]} 15. f5 {[%emt 0:03:12]} exf5 {[%emt 0:04:51]} 16. Nxf5 {[%emt 0:06:34]} Bxf5 {[%emt 0:00:18]} 17. Qxf5 {[%emt 0:00:04]} Qxf5 {[%emt 0:00:07]} 18. Rxf5 $11 {[%emt 0:00:04]} Rae8 {[%emt 0:01:01]} 19. Bf4 {[%emt 0:02:10]} Bxf4 {[%emt 0:06:10]} 20. Rxf4 {[%emt 0:00:05]} Na5 {[%emt 0:02:37]} 21. Bc2 {[%emt 0:02:16]} Nc4 {[%emt 0:01:31]} 22. h3 {[%emt 0:04:42]} Nd5 {[%emt 0:03:51]} 23. Rf2 {[%emt 0:00:37]} Re7 {[%emt 0:03:10]} 24. Bb3 {[%emt 0:01:25]} b5 {[%emt 0:02:17]} 25. Raf1 {[%emt 0:05:34]} f6 {[%emt 0:08:53]} 26. Nc1 {[%emt 0:00:47]} 1/2-1/2